{"text_format":"3","workbook":"xlsx","n_sheets":3,"sheets":["Harmonogram","Wprowadzanie danych","Odnośnik nazwy"],"not_rendered":{"defined_names":5},"read":"whole","date_system":"1900"}

{"sheet":"Harmonogram","index":0,"n_rows":23,"n_cols":9,"rows_kept":23,"merged":[[1,1,2,3]]}
[]
[null,"PLAN DNIA",{"$nulls":4},"Dla tygodnia z datą ","Pokaż harmonogram dla: "]
[{"$nulls":5},{"$f":"WEEKDAY(Tydzień,1)","v":3},"2012-07-03","Tomasz"]
[null,null,{"$f":"$F$3=COLUMN(A$1)","v":false},{"$f":"$F$3=COLUMN(B$1)","v":false},true,false,false,false,false]
[null,null,{"$f":"COLUMN(A$1)-MATCH(TRUE,$C$4:$I$4,0)+Tydzień+1","v":"2012-07-02"},"2012-07-03","2012-07-04","2012-07-05","2012-07-06","2012-07-07","2012-07-08"]
[null,"GODZINA","PONIEDZIAŁEK","WTOREK","ŚRODA","CZWARTEK","PIĄTEK","SOBOTA","NIEDZIELA"]
[null,"06:00:00",{"$f":"IFERROR(INDEX(tblDane[],MATCH(C$5+$B7&Wyświetlana_nazwa,tblDane[DATA I GODZINA]&tblDane[KTO],0),3),\"\")","v":""},{"$f":"IFERROR(INDEX(tblDane[],MATCH(D$5+$B7&Wyświetlana_nazwa,tblDane[DATA I GODZINA]&tblDane[KTO],0),3),\"\")","v":""},{"$f":"IFERROR(INDEX(tblDane[],MATCH(E$5+$B7&Wyświetlana_nazwa,tblDane[DATA I GODZINA]&tblDane[KTO],0),3),\"\")","v":""},{"$f":"IFERROR(INDEX(tblDane[],MATCH(F$5+$B7&Wyświetlana_nazwa,tblDane[DATA I GODZINA]&tblDane[KTO],0),3),\"\")","v":""},{"$f":"IFERROR(INDEX(tblDane[],MATCH(G$5+$B7&Wyświetlana_nazwa,tblDane[DATA I GODZINA]&tblDane[KTO],0),3),\"\")","v":""},{"$f":"IFERROR(INDEX(tblDane[],MATCH(H$5+$B7&Wyświetlana_nazwa,tblDane[DATA I GODZINA]&tblDane[KTO],0),3),\"\")","v":""},{"$f":"IFERROR(INDEX(tblDane[],MATCH(I$5+$B7&Wyświetlana_nazwa,tblDane[DATA I GODZINA]&tblDane[KTO],0),3),\"\")","v":""}]
[null,"07:00:00",{"$f":"IFERROR(INDEX(tblDane[],MATCH(C$5+$B8&Wyświetlana_nazwa,tblDane[DATA I GODZINA]&tblDane[KTO],0),3),\"\")","v":""},{"$f":"IFERROR(INDEX(tblDane[],MATCH(D$5+$B8&Wyświetlana_nazwa,tblDane[DATA I GODZINA]&tblDane[KTO],0),3),\"\")","v":""},{"$f":"IFERROR(INDEX(tblDane[],MATCH(E$5+$B8&Wyświetlana_nazwa,tblDane[DATA I GODZINA]&tblDane[KTO],0),3),\"\")","v":""},{"$f":"IFERROR(INDEX(tblDane[],MATCH(F$5+$B8&Wyświetlana_nazwa,tblDane[DATA I GODZINA]&tblDane[KTO],0),3),\"\")","v":""},{"$f":"IFERROR(INDEX(tblDane[],MATCH(G$5+$B8&Wyświetlana_nazwa,tblDane[DATA I GODZINA]&tblDane[KTO],0),3),\"\")","v":""},{"$f":"IFERROR(INDEX(tblDane[],MATCH(H$5+$B8&Wyświetlana_nazwa,tblDane[DATA I GODZINA]&tblDane[KTO],0),3),\"\")","v":""},{"$f":"IFERROR(INDEX(tblDane[],MATCH(I$5+$B8&Wyświetlana_nazwa,tblDane[DATA I GODZINA]&tblDane[KTO],0),3),\"\")","v":""}]
[null,"08:00:00",{"$f":"IFERROR(INDEX(tblDane[],MATCH(C$5+$B9&Wyświetlana_nazwa,tblDane[DATA I GODZINA]&tblDane[KTO],0),3),\"\")","v":""},{"$f":"IFERROR(INDEX(tblDane[],MATCH(D$5+$B9&Wyświetlana_nazwa,tblDane[DATA I GODZINA]&tblDane[KTO],0),3),\"\")","v":""},{"$f":"IFERROR(INDEX(tblDane[],MATCH(E$5+$B9&Wyświetlana_nazwa,tblDane[DATA I GODZINA]&tblDane[KTO],0),3),\"\")","v":""},{"$f":"IFERROR(INDEX(tblDane[],MATCH(F$5+$B9&Wyświetlana_nazwa,tblDane[DATA I GODZINA]&tblDane[KTO],0),3),\"\")","v":""},{"$f":"IFERROR(INDEX(tblDane[],MATCH(G$5+$B9&Wyświetlana_nazwa,tblDane[DATA I GODZINA]&tblDane[KTO],0),3),\"\")","v":""},{"$f":"IFERROR(INDEX(tblDane[],MATCH(H$5+$B9&Wyświetlana_nazwa,tblDane[DATA I GODZINA]&tblDane[KTO],0),3),\"\")","v":""},{"$f":"IFERROR(INDEX(tblDane[],MATCH(I$5+$B9&Wyświetlana_nazwa,tblDane[DATA I GODZINA]&tblDane[KTO],0),3),\"\")","v":""}]
[null,"09:00:00",{"$f":"IFERROR(INDEX(tblDane[],MATCH(C$5+$B10&Wyświetlana_nazwa,tblDane[DATA I GODZINA]&tblDane[KTO],0),3),\"\")","v":""},{"$f":"IFERROR(INDEX(tblDane[],MATCH(D$5+$B10&Wyświetlana_nazwa,tblDane[DATA I GODZINA]&tblDane[KTO],0),3),\"\")","v":""},{"$f":"IFERROR(INDEX(tblDane[],MATCH(E$5+$B10&Wyświetlana_nazwa,tblDane[DATA I GODZINA]&tblDane[KTO],0),3),\"\")","v":""},{"$f":"IFERROR(INDEX(tblDane[],MATCH(F$5+$B10&Wyświetlana_nazwa,tblDane[DATA I GODZINA]&tblDane[KTO],0),3),\"\")","v":""},{"$f":"IFERROR(INDEX(tblDane[],MATCH(G$5+$B10&Wyświetlana_nazwa,tblDane[DATA I GODZINA]&tblDane[KTO],0),3),\"\")","v":""},{"$f":"IFERROR(INDEX(tblDane[],MATCH(H$5+$B10&Wyświetlana_nazwa,tblDane[DATA I GODZINA]&tblDane[KTO],0),3),\"\")","v":""},{"$f":"IFERROR(INDEX(tblDane[],MATCH(I$5+$B10&Wyświetlana_nazwa,tblDane[DATA I GODZINA]&tblDane[KTO],0),3),\"\")","v":""}]
[null,"10:00:00",{"$f":"IFERROR(INDEX(tblDane[],MATCH(C$5+$B11&Wyświetlana_nazwa,tblDane[DATA I GODZINA]&tblDane[KTO],0),3),\"\")","v":""},{"$f":"IFERROR(INDEX(tblDane[],MATCH(D$5+$B11&Wyświetlana_nazwa,tblDane[DATA I GODZINA]&tblDane[KTO],0),3),\"\")","v":""},{"$f":"IFERROR(INDEX(tblDane[],MATCH(E$5+$B11&Wyświetlana_nazwa,tblDane[DATA I GODZINA]&tblDane[KTO],0),3),\"\")","v":"Parada w centrum"},{"$f":"IFERROR(INDEX(tblDane[],MATCH(F$5+$B11&Wyświetlana_nazwa,tblDane[DATA I GODZINA]&tblDane[KTO],0),3),\"\")","v":""},{"$f":"IFERROR(INDEX(tblDane[],MATCH(G$5+$B11&Wyświetlana_nazwa,tblDane[DATA I GODZINA]&tblDane[KTO],0),3),\"\")","v":""},{"$f":"IFERROR(INDEX(tblDane[],MATCH(H$5+$B11&Wyświetlana_nazwa,tblDane[DATA I GODZINA]&tblDane[KTO],0),3),\"\")","v":""},{"$f":"IFERROR(INDEX(tblDane[],MATCH(I$5+$B11&Wyświetlana_nazwa,tblDane[DATA I GODZINA]&tblDane[KTO],0),3),\"\")","v":""}]
[null,"11:00:00",{"$f":"IFERROR(INDEX(tblDane[],MATCH(C$5+$B12&Wyświetlana_nazwa,tblDane[DATA I GODZINA]&tblDane[KTO],0),3),\"\")","v":""},{"$f":"IFERROR(INDEX(tblDane[],MATCH(D$5+$B12&Wyświetlana_nazwa,tblDane[DATA I GODZINA]&tblDane[KTO],0),3),\"\")","v":""},{"$f":"IFERROR(INDEX(tblDane[],MATCH(E$5+$B12&Wyświetlana_nazwa,tblDane[DATA I GODZINA]&tblDane[KTO],0),3),\"\")","v":""},{"$f":"IFERROR(INDEX(tblDane[],MATCH(F$5+$B12&Wyświetlana_nazwa,tblDane[DATA I GODZINA]&tblDane[KTO],0),3),\"\")","v":""},{"$f":"IFERROR(INDEX(tblDane[],MATCH(G$5+$B12&Wyświetlana_nazwa,tblDane[DATA I GODZINA]&tblDane[KTO],0),3),\"\")","v":"Grill rodzinny"},{"$f":"IFERROR(INDEX(tblDane[],MATCH(H$5+$B12&Wyświetlana_nazwa,tblDane[DATA I GODZINA]&tblDane[KTO],0),3),\"\")","v":""},{"$f":"IFERROR(INDEX(tblDane[],MATCH(I$5+$B12&Wyświetlana_nazwa,tblDane[DATA I GODZINA]&tblDane[KTO],0),3),\"\")","v":""}]
[null,"12:00:00",{"$f":"IFERROR(INDEX(tblDane[],MATCH(C$5+$B13&Wyświetlana_nazwa,tblDane[DATA I GODZINA]&tblDane[KTO],0),3),\"\")","v":""},{"$f":"IFERROR(INDEX(tblDane[],MATCH(D$5+$B13&Wyświetlana_nazwa,tblDane[DATA I GODZINA]&tblDane[KTO],0),3),\"\")","v":""},{"$f":"IFERROR(INDEX(tblDane[],MATCH(E$5+$B13&Wyświetlana_nazwa,tblDane[DATA I GODZINA]&tblDane[KTO],0),3),\"\")","v":""},{"$f":"IFERROR(INDEX(tblDane[],MATCH(F$5+$B13&Wyświetlana_nazwa,tblDane[DATA I GODZINA]&tblDane[KTO],0),3),\"\")","v":""},{"$f":"IFERROR(INDEX(tblDane[],MATCH(G$5+$B13&Wyświetlana_nazwa,tblDane[DATA I GODZINA]&tblDane[KTO],0),3),\"\")","v":""},{"$f":"IFERROR(INDEX(tblDane[],MATCH(H$5+$B13&Wyświetlana_nazwa,tblDane[DATA I GODZINA]&tblDane[KTO],0),3),\"\")","v":""},{"$f":"IFERROR(INDEX(tblDane[],MATCH(I$5+$B13&Wyświetlana_nazwa,tblDane[DATA I GODZINA]&tblDane[KTO],0),3),\"\")","v":""}]
[null,"13:00:00",{"$f":"IFERROR(INDEX(tblDane[],MATCH(C$5+$B14&Wyświetlana_nazwa,tblDane[DATA I GODZINA]&tblDane[KTO],0),3),\"\")","v":""},{"$f":"IFERROR(INDEX(tblDane[],MATCH(D$5+$B14&Wyświetlana_nazwa,tblDane[DATA I GODZINA]&tblDane[KTO],0),3),\"\")","v":""},{"$f":"IFERROR(INDEX(tblDane[],MATCH(E$5+$B14&Wyświetlana_nazwa,tblDane[DATA I GODZINA]&tblDane[KTO],0),3),\"\")","v":""},{"$f":"IFERROR(INDEX(tblDane[],MATCH(F$5+$B14&Wyświetlana_nazwa,tblDane[DATA I GODZINA]&tblDane[KTO],0),3),\"\")","v":""},{"$f":"IFERROR(INDEX(tblDane[],MATCH(G$5+$B14&Wyświetlana_nazwa,tblDane[DATA I GODZINA]&tblDane[KTO],0),3),\"\")","v":""},{"$f":"IFERROR(INDEX(tblDane[],MATCH(H$5+$B14&Wyświetlana_nazwa,tblDane[DATA I GODZINA]&tblDane[KTO],0),3),\"\")","v":""},{"$f":"IFERROR(INDEX(tblDane[],MATCH(I$5+$B14&Wyświetlana_nazwa,tblDane[DATA I GODZINA]&tblDane[KTO],0),3),\"\")","v":""}]
[null,"14:00:00",{"$f":"IFERROR(INDEX(tblDane[],MATCH(C$5+$B15&Wyświetlana_nazwa,tblDane[DATA I GODZINA]&tblDane[KTO],0),3),\"\")","v":""},{"$f":"IFERROR(INDEX(tblDane[],MATCH(D$5+$B15&Wyświetlana_nazwa,tblDane[DATA I GODZINA]&tblDane[KTO],0),3),\"\")","v":""},{"$f":"IFERROR(INDEX(tblDane[],MATCH(E$5+$B15&Wyświetlana_nazwa,tblDane[DATA I GODZINA]&tblDane[KTO],0),3),\"\")","v":""},{"$f":"IFERROR(INDEX(tblDane[],MATCH(F$5+$B15&Wyświetlana_nazwa,tblDane[DATA I GODZINA]&tblDane[KTO],0),3),\"\")","v":""},{"$f":"IFERROR(INDEX(tblDane[],MATCH(G$5+$B15&Wyświetlana_nazwa,tblDane[DATA I GODZINA]&tblDane[KTO],0),3),\"\")","v":""},{"$f":"IFERROR(INDEX(tblDane[],MATCH(H$5+$B15&Wyświetlana_nazwa,tblDane[DATA I GODZINA]&tblDane[KTO],0),3),\"\")","v":""},{"$f":"IFERROR(INDEX(tblDane[],MATCH(I$5+$B15&Wyświetlana_nazwa,tblDane[DATA I GODZINA]&tblDane[KTO],0),3),\"\")","v":""}]
[null,"15:00:00",{"$f":"IFERROR(INDEX(tblDane[],MATCH(C$5+$B16&Wyświetlana_nazwa,tblDane[DATA I GODZINA]&tblDane[KTO],0),3),\"\")","v":""},{"$f":"IFERROR(INDEX(tblDane[],MATCH(D$5+$B16&Wyświetlana_nazwa,tblDane[DATA I GODZINA]&tblDane[KTO],0),3),\"\")","v":""},{"$f":"IFERROR(INDEX(tblDane[],MATCH(E$5+$B16&Wyświetlana_nazwa,tblDane[DATA I GODZINA]&tblDane[KTO],0),3),\"\")","v":""},{"$f":"IFERROR(INDEX(tblDane[],MATCH(F$5+$B16&Wyświetlana_nazwa,tblDane[DATA I GODZINA]&tblDane[KTO],0),3),\"\")","v":""},{"$f":"IFERROR(INDEX(tblDane[],MATCH(G$5+$B16&Wyświetlana_nazwa,tblDane[DATA I GODZINA]&tblDane[KTO],0),3),\"\")","v":""},{"$f":"IFERROR(INDEX(tblDane[],MATCH(H$5+$B16&Wyświetlana_nazwa,tblDane[DATA I GODZINA]&tblDane[KTO],0),3),\"\")","v":""},{"$f":"IFERROR(INDEX(tblDane[],MATCH(I$5+$B16&Wyświetlana_nazwa,tblDane[DATA I GODZINA]&tblDane[KTO],0),3),\"\")","v":""}]
[null,"16:00:00",{"$f":"IFERROR(INDEX(tblDane[],MATCH(C$5+$B17&Wyświetlana_nazwa,tblDane[DATA I GODZINA]&tblDane[KTO],0),3),\"\")","v":""},{"$f":"IFERROR(INDEX(tblDane[],MATCH(D$5+$B17&Wyświetlana_nazwa,tblDane[DATA I GODZINA]&tblDane[KTO],0),3),\"\")","v":"Wyjazd do domku letniskowego"},{"$f":"IFERROR(INDEX(tblDane[],MATCH(E$5+$B17&Wyświetlana_nazwa,tblDane[DATA I GODZINA]&tblDane[KTO],0),3),\"\")","v":""},{"$f":"IFERROR(INDEX(tblDane[],MATCH(F$5+$B17&Wyświetlana_nazwa,tblDane[DATA I GODZINA]&tblDane[KTO],0),3),\"\")","v":""},{"$f":"IFERROR(INDEX(tblDane[],MATCH(G$5+$B17&Wyświetlana_nazwa,tblDane[DATA I GODZINA]&tblDane[KTO],0),3),\"\")","v":""},{"$f":"IFERROR(INDEX(tblDane[],MATCH(H$5+$B17&Wyświetlana_nazwa,tblDane[DATA I GODZINA]&tblDane[KTO],0),3),\"\")","v":""},{"$f":"IFERROR(INDEX(tblDane[],MATCH(I$5+$B17&Wyświetlana_nazwa,tblDane[DATA I GODZINA]&tblDane[KTO],0),3),\"\")","v":""}]
[null,"17:00:00",{"$f":"IFERROR(INDEX(tblDane[],MATCH(C$5+$B18&Wyświetlana_nazwa,tblDane[DATA I GODZINA]&tblDane[KTO],0),3),\"\")","v":""},{"$f":"IFERROR(INDEX(tblDane[],MATCH(D$5+$B18&Wyświetlana_nazwa,tblDane[DATA I GODZINA]&tblDane[KTO],0),3),\"\")","v":""},{"$f":"IFERROR(INDEX(tblDane[],MATCH(E$5+$B18&Wyświetlana_nazwa,tblDane[DATA I GODZINA]&tblDane[KTO],0),3),\"\")","v":""},{"$f":"IFERROR(INDEX(tblDane[],MATCH(F$5+$B18&Wyświetlana_nazwa,tblDane[DATA I GODZINA]&tblDane[KTO],0),3),\"\")","v":""},{"$f":"IFERROR(INDEX(tblDane[],MATCH(G$5+$B18&Wyświetlana_nazwa,tblDane[DATA I GODZINA]&tblDane[KTO],0),3),\"\")","v":""},{"$f":"IFERROR(INDEX(tblDane[],MATCH(H$5+$B18&Wyświetlana_nazwa,tblDane[DATA I GODZINA]&tblDane[KTO],0),3),\"\")","v":""},{"$f":"IFERROR(INDEX(tblDane[],MATCH(I$5+$B18&Wyświetlana_nazwa,tblDane[DATA I GODZINA]&tblDane[KTO],0),3),\"\")","v":"Powrót do domu"}]
[null,"18:00:00",{"$f":"IFERROR(INDEX(tblDane[],MATCH(C$5+$B19&Wyświetlana_nazwa,tblDane[DATA I GODZINA]&tblDane[KTO],0),3),\"\")","v":"Wziąć lekarstwo"},{"$f":"IFERROR(INDEX(tblDane[],MATCH(D$5+$B19&Wyświetlana_nazwa,tblDane[DATA I GODZINA]&tblDane[KTO],0),3),\"\")","v":""},{"$f":"IFERROR(INDEX(tblDane[],MATCH(E$5+$B19&Wyświetlana_nazwa,tblDane[DATA I GODZINA]&tblDane[KTO],0),3),\"\")","v":""},{"$f":"IFERROR(INDEX(tblDane[],MATCH(F$5+$B19&Wyświetlana_nazwa,tblDane[DATA I GODZINA]&tblDane[KTO],0),3),\"\")","v":""},{"$f":"IFERROR(INDEX(tblDane[],MATCH(G$5+$B19&Wyświetlana_nazwa,tblDane[DATA I GODZINA]&tblDane[KTO],0),3),\"\")","v":""},{"$f":"IFERROR(INDEX(tblDane[],MATCH(H$5+$B19&Wyświetlana_nazwa,tblDane[DATA I GODZINA]&tblDane[KTO],0),3),\"\")","v":""},{"$f":"IFERROR(INDEX(tblDane[],MATCH(I$5+$B19&Wyświetlana_nazwa,tblDane[DATA I GODZINA]&tblDane[KTO],0),3),\"\")","v":""}]
[null,"19:00:00",{"$f":"IFERROR(INDEX(tblDane[],MATCH(C$5+$B20&Wyświetlana_nazwa,tblDane[DATA I GODZINA]&tblDane[KTO],0),3),\"\")","v":""},{"$f":"IFERROR(INDEX(tblDane[],MATCH(D$5+$B20&Wyświetlana_nazwa,tblDane[DATA I GODZINA]&tblDane[KTO],0),3),\"\")","v":""},{"$f":"IFERROR(INDEX(tblDane[],MATCH(E$5+$B20&Wyświetlana_nazwa,tblDane[DATA I GODZINA]&tblDane[KTO],0),3),\"\")","v":""},{"$f":"IFERROR(INDEX(tblDane[],MATCH(F$5+$B20&Wyświetlana_nazwa,tblDane[DATA I GODZINA]&tblDane[KTO],0),3),\"\")","v":""},{"$f":"IFERROR(INDEX(tblDane[],MATCH(G$5+$B20&Wyświetlana_nazwa,tblDane[DATA I GODZINA]&tblDane[KTO],0),3),\"\")","v":""},{"$f":"IFERROR(INDEX(tblDane[],MATCH(H$5+$B20&Wyświetlana_nazwa,tblDane[DATA I GODZINA]&tblDane[KTO],0),3),\"\")","v":""},{"$f":"IFERROR(INDEX(tblDane[],MATCH(I$5+$B20&Wyświetlana_nazwa,tblDane[DATA I GODZINA]&tblDane[KTO],0),3),\"\")","v":""}]
[null,"20:00:00",{"$f":"IFERROR(INDEX(tblDane[],MATCH(C$5+$B21&Wyświetlana_nazwa,tblDane[DATA I GODZINA]&tblDane[KTO],0),3),\"\")","v":"Film z rodziną"},{"$f":"IFERROR(INDEX(tblDane[],MATCH(D$5+$B21&Wyświetlana_nazwa,tblDane[DATA I GODZINA]&tblDane[KTO],0),3),\"\")","v":""},{"$f":"IFERROR(INDEX(tblDane[],MATCH(E$5+$B21&Wyświetlana_nazwa,tblDane[DATA I GODZINA]&tblDane[KTO],0),3),\"\")","v":""},{"$f":"IFERROR(INDEX(tblDane[],MATCH(F$5+$B21&Wyświetlana_nazwa,tblDane[DATA I GODZINA]&tblDane[KTO],0),3),\"\")","v":"Pokaz fajerwerków"},{"$f":"IFERROR(INDEX(tblDane[],MATCH(G$5+$B21&Wyświetlana_nazwa,tblDane[DATA I GODZINA]&tblDane[KTO],0),3),\"\")","v":""},{"$f":"IFERROR(INDEX(tblDane[],MATCH(H$5+$B21&Wyświetlana_nazwa,tblDane[DATA I GODZINA]&tblDane[KTO],0),3),\"\")","v":""},{"$f":"IFERROR(INDEX(tblDane[],MATCH(I$5+$B21&Wyświetlana_nazwa,tblDane[DATA I GODZINA]&tblDane[KTO],0),3),\"\")","v":""}]
[null,"21:00:00",{"$f":"IFERROR(INDEX(tblDane[],MATCH(C$5+$B22&Wyświetlana_nazwa,tblDane[DATA I GODZINA]&tblDane[KTO],0),3),\"\")","v":""},{"$f":"IFERROR(INDEX(tblDane[],MATCH(D$5+$B22&Wyświetlana_nazwa,tblDane[DATA I GODZINA]&tblDane[KTO],0),3),\"\")","v":""},{"$f":"IFERROR(INDEX(tblDane[],MATCH(E$5+$B22&Wyświetlana_nazwa,tblDane[DATA I GODZINA]&tblDane[KTO],0),3),\"\")","v":""},{"$f":"IFERROR(INDEX(tblDane[],MATCH(F$5+$B22&Wyświetlana_nazwa,tblDane[DATA I GODZINA]&tblDane[KTO],0),3),\"\")","v":""},{"$f":"IFERROR(INDEX(tblDane[],MATCH(G$5+$B22&Wyświetlana_nazwa,tblDane[DATA I GODZINA]&tblDane[KTO],0),3),\"\")","v":""},{"$f":"IFERROR(INDEX(tblDane[],MATCH(H$5+$B22&Wyświetlana_nazwa,tblDane[DATA I GODZINA]&tblDane[KTO],0),3),\"\")","v":""},{"$f":"IFERROR(INDEX(tblDane[],MATCH(I$5+$B22&Wyświetlana_nazwa,tblDane[DATA I GODZINA]&tblDane[KTO],0),3),\"\")","v":""}]
[null,"22:00:00",{"$f":"IFERROR(INDEX(tblDane[],MATCH(C$5+$B23&Wyświetlana_nazwa,tblDane[DATA I GODZINA]&tblDane[KTO],0),3),\"\")","v":""},{"$f":"IFERROR(INDEX(tblDane[],MATCH(D$5+$B23&Wyświetlana_nazwa,tblDane[DATA I GODZINA]&tblDane[KTO],0),3),\"\")","v":""},{"$f":"IFERROR(INDEX(tblDane[],MATCH(E$5+$B23&Wyświetlana_nazwa,tblDane[DATA I GODZINA]&tblDane[KTO],0),3),\"\")","v":""},{"$f":"IFERROR(INDEX(tblDane[],MATCH(F$5+$B23&Wyświetlana_nazwa,tblDane[DATA I GODZINA]&tblDane[KTO],0),3),\"\")","v":""},{"$f":"IFERROR(INDEX(tblDane[],MATCH(G$5+$B23&Wyświetlana_nazwa,tblDane[DATA I GODZINA]&tblDane[KTO],0),3),\"\")","v":""},{"$f":"IFERROR(INDEX(tblDane[],MATCH(H$5+$B23&Wyświetlana_nazwa,tblDane[DATA I GODZINA]&tblDane[KTO],0),3),\"\")","v":""},{"$f":"IFERROR(INDEX(tblDane[],MATCH(I$5+$B23&Wyświetlana_nazwa,tblDane[DATA I GODZINA]&tblDane[KTO],0),3),\"\")","v":""}]

{"sheet":"Wprowadzanie danych","index":1,"n_rows":14,"n_cols":4,"rows_kept":14}
[null,"WPROWADZANIE DANYCH"]
[]
[null,"DATA I GODZINA","KTO","ZADANIE"]
[null,"2012-07-02T08:00:00","Anna","Wizyta u lekarza"]
[null,"2012-07-02T18:00:00","Tomasz","Wziąć lekarstwo"]
[null,"2012-07-02T18:30:00","Tomasz","Kolacja z Anną"]
[null,"2012-07-02T20:00:00","Tomasz","Film z rodziną"]
[null,"2012-07-03T16:00:00","Tomasz","Wyjazd do domku letniskowego"]
[null,"2012-07-04T10:00:00","Tomasz","Parada w centrum"]
[null,"2012-07-05T20:00:00","Tomasz","Pokaz fajerwerków"]
[null,"2012-07-06T11:00:00","Tomasz","Grill rodzinny"]
[null,"2012-07-07","Tomasz","Piknik osiedlowy"]
[null,"2012-07-08T17:00:00","Tomasz","Powrót do domu"]
[null,"2012-07-02T10:00:00","Anna","Lekcje gry na fortepianie"]

{"sheet":"Odnośnik nazwy","index":2,"n_rows":132,"n_cols":2,"rows_kept":132,"hidden":true,"merged":[[0,0,0,1]]}
["Za pomocą tego arkusza jest wypełniana lista rozwijana nazw w komórce H3 arkusza Harmonogram. Wprowadzenie jakichkolwiek zmian w tym arkuszu może spowodować wystąpienie błędu."]
["UNIKATOWA NAZWA","NUMER WIERSZA"]
[{"$f":"IFERROR(INDEX(Pole_Kto,MATCH(0,COUNTIF($A$2:A2,Pole_Kto),0)),\"\")","v":"Anna"},{"$f":"IF(A3=\"\",\"\",ROW())","v":3}]
[{"$f":"IFERROR(INDEX(Pole_Kto,MATCH(0,COUNTIF($A$2:A3,Pole_Kto),0)),\"\")","v":"Tomasz"},{"$f":"IF(A4=\"\",\"\",ROW())","v":4}]
[{"$f":"IFERROR(INDEX(Pole_Kto,MATCH(0,COUNTIF($A$2:A4,Pole_Kto),0)),\"\")","v":""},""]
[{"$f":"IFERROR(INDEX(Pole_Kto,MATCH(0,COUNTIF($A$2:A5,Pole_Kto),0)),\"\")","v":""},""]
[{"$f":"IFERROR(INDEX(Pole_Kto,MATCH(0,COUNTIF($A$2:A6,Pole_Kto),0)),\"\")","v":""},""]
[{"$f":"IFERROR(INDEX(Pole_Kto,MATCH(0,COUNTIF($A$2:A7,Pole_Kto),0)),\"\")","v":""},""]
[{"$f":"IFERROR(INDEX(Pole_Kto,MATCH(0,COUNTIF($A$2:A8,Pole_Kto),0)),\"\")","v":""},""]
[{"$f":"IFERROR(INDEX(Pole_Kto,MATCH(0,COUNTIF($A$2:A9,Pole_Kto),0)),\"\")","v":""},""]
[{"$f":"IFERROR(INDEX(Pole_Kto,MATCH(0,COUNTIF($A$2:A10,Pole_Kto),0)),\"\")","v":""},""]
[{"$f":"IFERROR(INDEX(Pole_Kto,MATCH(0,COUNTIF($A$2:A11,Pole_Kto),0)),\"\")","v":""},""]
[{"$f":"IFERROR(INDEX(Pole_Kto,MATCH(0,COUNTIF($A$2:A12,Pole_Kto),0)),\"\")","v":""},""]
[{"$f":"IFERROR(INDEX(Pole_Kto,MATCH(0,COUNTIF($A$2:A13,Pole_Kto),0)),\"\")","v":""},""]
[{"$f":"IFERROR(INDEX(Pole_Kto,MATCH(0,COUNTIF($A$2:A14,Pole_Kto),0)),\"\")","v":""},""]
[{"$f":"IFERROR(INDEX(Pole_Kto,MATCH(0,COUNTIF($A$2:A15,Pole_Kto),0)),\"\")","v":""},""]
[{"$f":"IFERROR(INDEX(Pole_Kto,MATCH(0,COUNTIF($A$2:A16,Pole_Kto),0)),\"\")","v":""},""]
[{"$f":"IFERROR(INDEX(Pole_Kto,MATCH(0,COUNTIF($A$2:A17,Pole_Kto),0)),\"\")","v":""},""]
[{"$f":"IFERROR(INDEX(Pole_Kto,MATCH(0,COUNTIF($A$2:A18,Pole_Kto),0)),\"\")","v":""},""]
[{"$f":"IFERROR(INDEX(Pole_Kto,MATCH(0,COUNTIF($A$2:A19,Pole_Kto),0)),\"\")","v":""},""]
[{"$f":"IFERROR(INDEX(Pole_Kto,MATCH(0,COUNTIF($A$2:A20,Pole_Kto),0)),\"\")","v":""},""]
[{"$f":"IFERROR(INDEX(Pole_Kto,MATCH(0,COUNTIF($A$2:A21,Pole_Kto),0)),\"\")","v":""},""]
[{"$f":"IFERROR(INDEX(Pole_Kto,MATCH(0,COUNTIF($A$2:A22,Pole_Kto),0)),\"\")","v":""},""]
[{"$f":"IFERROR(INDEX(Pole_Kto,MATCH(0,COUNTIF($A$2:A23,Pole_Kto),0)),\"\")","v":""},""]
[{"$f":"IFERROR(INDEX(Pole_Kto,MATCH(0,COUNTIF($A$2:A24,Pole_Kto),0)),\"\")","v":""},""]
[{"$f":"IFERROR(INDEX(Pole_Kto,MATCH(0,COUNTIF($A$2:A25,Pole_Kto),0)),\"\")","v":""},""]
[{"$f":"IFERROR(INDEX(Pole_Kto,MATCH(0,COUNTIF($A$2:A26,Pole_Kto),0)),\"\")","v":""},""]
[{"$f":"IFERROR(INDEX(Pole_Kto,MATCH(0,COUNTIF($A$2:A27,Pole_Kto),0)),\"\")","v":""},""]
[{"$f":"IFERROR(INDEX(Pole_Kto,MATCH(0,COUNTIF($A$2:A28,Pole_Kto),0)),\"\")","v":""},""]
[{"$f":"IFERROR(INDEX(Pole_Kto,MATCH(0,COUNTIF($A$2:A29,Pole_Kto),0)),\"\")","v":""},""]
[{"$f":"IFERROR(INDEX(Pole_Kto,MATCH(0,COUNTIF($A$2:A30,Pole_Kto),0)),\"\")","v":""},""]
[{"$f":"IFERROR(INDEX(Pole_Kto,MATCH(0,COUNTIF($A$2:A31,Pole_Kto),0)),\"\")","v":""},""]
[{"$f":"IFERROR(INDEX(Pole_Kto,MATCH(0,COUNTIF($A$2:A32,Pole_Kto),0)),\"\")","v":""},""]
[{"$f":"IFERROR(INDEX(Pole_Kto,MATCH(0,COUNTIF($A$2:A33,Pole_Kto),0)),\"\")","v":""},""]
[{"$f":"IFERROR(INDEX(Pole_Kto,MATCH(0,COUNTIF($A$2:A34,Pole_Kto),0)),\"\")","v":""},""]
[{"$f":"IFERROR(INDEX(Pole_Kto,MATCH(0,COUNTIF($A$2:A35,Pole_Kto),0)),\"\")","v":""},""]
[{"$f":"IFERROR(INDEX(Pole_Kto,MATCH(0,COUNTIF($A$2:A36,Pole_Kto),0)),\"\")","v":""},""]
[{"$f":"IFERROR(INDEX(Pole_Kto,MATCH(0,COUNTIF($A$2:A37,Pole_Kto),0)),\"\")","v":""},""]
[{"$f":"IFERROR(INDEX(Pole_Kto,MATCH(0,COUNTIF($A$2:A38,Pole_Kto),0)),\"\")","v":""},""]
[{"$f":"IFERROR(INDEX(Pole_Kto,MATCH(0,COUNTIF($A$2:A39,Pole_Kto),0)),\"\")","v":""},""]
[{"$f":"IFERROR(INDEX(Pole_Kto,MATCH(0,COUNTIF($A$2:A40,Pole_Kto),0)),\"\")","v":""},""]
[{"$f":"IFERROR(INDEX(Pole_Kto,MATCH(0,COUNTIF($A$2:A41,Pole_Kto),0)),\"\")","v":""},""]
[{"$f":"IFERROR(INDEX(Pole_Kto,MATCH(0,COUNTIF($A$2:A42,Pole_Kto),0)),\"\")","v":""},""]
[{"$f":"IFERROR(INDEX(Pole_Kto,MATCH(0,COUNTIF($A$2:A43,Pole_Kto),0)),\"\")","v":""},""]
[{"$f":"IFERROR(INDEX(Pole_Kto,MATCH(0,COUNTIF($A$2:A44,Pole_Kto),0)),\"\")","v":""},""]
[{"$f":"IFERROR(INDEX(Pole_Kto,MATCH(0,COUNTIF($A$2:A45,Pole_Kto),0)),\"\")","v":""},""]
[{"$f":"IFERROR(INDEX(Pole_Kto,MATCH(0,COUNTIF($A$2:A46,Pole_Kto),0)),\"\")","v":""},""]
[{"$f":"IFERROR(INDEX(Pole_Kto,MATCH(0,COUNTIF($A$2:A47,Pole_Kto),0)),\"\")","v":""},""]
[{"$f":"IFERROR(INDEX(Pole_Kto,MATCH(0,COUNTIF($A$2:A48,Pole_Kto),0)),\"\")","v":""},""]
[{"$f":"IFERROR(INDEX(Pole_Kto,MATCH(0,COUNTIF($A$2:A49,Pole_Kto),0)),\"\")","v":""},""]
[{"$f":"IFERROR(INDEX(Pole_Kto,MATCH(0,COUNTIF($A$2:A50,Pole_Kto),0)),\"\")","v":""},""]
[{"$f":"IFERROR(INDEX(Pole_Kto,MATCH(0,COUNTIF($A$2:A51,Pole_Kto),0)),\"\")","v":""},""]
[{"$f":"IFERROR(INDEX(Pole_Kto,MATCH(0,COUNTIF($A$2:A52,Pole_Kto),0)),\"\")","v":""},""]
[{"$f":"IFERROR(INDEX(Pole_Kto,MATCH(0,COUNTIF($A$2:A53,Pole_Kto),0)),\"\")","v":""},""]
[{"$f":"IFERROR(INDEX(Pole_Kto,MATCH(0,COUNTIF($A$2:A54,Pole_Kto),0)),\"\")","v":""},""]
[{"$f":"IFERROR(INDEX(Pole_Kto,MATCH(0,COUNTIF($A$2:A55,Pole_Kto),0)),\"\")","v":""},""]
[{"$f":"IFERROR(INDEX(Pole_Kto,MATCH(0,COUNTIF($A$2:A56,Pole_Kto),0)),\"\")","v":""},""]
[{"$f":"IFERROR(INDEX(Pole_Kto,MATCH(0,COUNTIF($A$2:A57,Pole_Kto),0)),\"\")","v":""},""]
[{"$f":"IFERROR(INDEX(Pole_Kto,MATCH(0,COUNTIF($A$2:A58,Pole_Kto),0)),\"\")","v":""},""]
[{"$f":"IFERROR(INDEX(Pole_Kto,MATCH(0,COUNTIF($A$2:A59,Pole_Kto),0)),\"\")","v":""},""]
[{"$f":"IFERROR(INDEX(Pole_Kto,MATCH(0,COUNTIF($A$2:A60,Pole_Kto),0)),\"\")","v":""},""]
[{"$f":"IFERROR(INDEX(Pole_Kto,MATCH(0,COUNTIF($A$2:A61,Pole_Kto),0)),\"\")","v":""},""]
[{"$f":"IFERROR(INDEX(Pole_Kto,MATCH(0,COUNTIF($A$2:A62,Pole_Kto),0)),\"\")","v":""},""]
[{"$f":"IFERROR(INDEX(Pole_Kto,MATCH(0,COUNTIF($A$2:A63,Pole_Kto),0)),\"\")","v":""},""]
[{"$f":"IFERROR(INDEX(Pole_Kto,MATCH(0,COUNTIF($A$2:A64,Pole_Kto),0)),\"\")","v":""},""]
[{"$f":"IFERROR(INDEX(Pole_Kto,MATCH(0,COUNTIF($A$2:A65,Pole_Kto),0)),\"\")","v":""},""]
[{"$f":"IFERROR(INDEX(Pole_Kto,MATCH(0,COUNTIF($A$2:A66,Pole_Kto),0)),\"\")","v":""},""]
[{"$f":"IFERROR(INDEX(Pole_Kto,MATCH(0,COUNTIF($A$2:A67,Pole_Kto),0)),\"\")","v":""},{"$f":"IF(A68=\"\",\"\",ROW())","v":""}]
[{"$f":"IFERROR(INDEX(Pole_Kto,MATCH(0,COUNTIF($A$2:A68,Pole_Kto),0)),\"\")","v":""},""]
[{"$f":"IFERROR(INDEX(Pole_Kto,MATCH(0,COUNTIF($A$2:A69,Pole_Kto),0)),\"\")","v":""},""]
[{"$f":"IFERROR(INDEX(Pole_Kto,MATCH(0,COUNTIF($A$2:A70,Pole_Kto),0)),\"\")","v":""},""]
[{"$f":"IFERROR(INDEX(Pole_Kto,MATCH(0,COUNTIF($A$2:A71,Pole_Kto),0)),\"\")","v":""},""]
[{"$f":"IFERROR(INDEX(Pole_Kto,MATCH(0,COUNTIF($A$2:A72,Pole_Kto),0)),\"\")","v":""},""]
[{"$f":"IFERROR(INDEX(Pole_Kto,MATCH(0,COUNTIF($A$2:A73,Pole_Kto),0)),\"\")","v":""},""]
[{"$f":"IFERROR(INDEX(Pole_Kto,MATCH(0,COUNTIF($A$2:A74,Pole_Kto),0)),\"\")","v":""},""]
[{"$f":"IFERROR(INDEX(Pole_Kto,MATCH(0,COUNTIF($A$2:A75,Pole_Kto),0)),\"\")","v":""},""]
[{"$f":"IFERROR(INDEX(Pole_Kto,MATCH(0,COUNTIF($A$2:A76,Pole_Kto),0)),\"\")","v":""},""]
[{"$f":"IFERROR(INDEX(Pole_Kto,MATCH(0,COUNTIF($A$2:A77,Pole_Kto),0)),\"\")","v":""},""]
[{"$f":"IFERROR(INDEX(Pole_Kto,MATCH(0,COUNTIF($A$2:A78,Pole_Kto),0)),\"\")","v":""},""]
[{"$f":"IFERROR(INDEX(Pole_Kto,MATCH(0,COUNTIF($A$2:A79,Pole_Kto),0)),\"\")","v":""},""]
[{"$f":"IFERROR(INDEX(Pole_Kto,MATCH(0,COUNTIF($A$2:A80,Pole_Kto),0)),\"\")","v":""},""]
[{"$f":"IFERROR(INDEX(Pole_Kto,MATCH(0,COUNTIF($A$2:A81,Pole_Kto),0)),\"\")","v":""},""]
[{"$f":"IFERROR(INDEX(Pole_Kto,MATCH(0,COUNTIF($A$2:A82,Pole_Kto),0)),\"\")","v":""},""]
[{"$f":"IFERROR(INDEX(Pole_Kto,MATCH(0,COUNTIF($A$2:A83,Pole_Kto),0)),\"\")","v":""},""]
[{"$f":"IFERROR(INDEX(Pole_Kto,MATCH(0,COUNTIF($A$2:A84,Pole_Kto),0)),\"\")","v":""},""]
[{"$f":"IFERROR(INDEX(Pole_Kto,MATCH(0,COUNTIF($A$2:A85,Pole_Kto),0)),\"\")","v":""},""]
[{"$f":"IFERROR(INDEX(Pole_Kto,MATCH(0,COUNTIF($A$2:A86,Pole_Kto),0)),\"\")","v":""},""]
[{"$f":"IFERROR(INDEX(Pole_Kto,MATCH(0,COUNTIF($A$2:A87,Pole_Kto),0)),\"\")","v":""},""]
[{"$f":"IFERROR(INDEX(Pole_Kto,MATCH(0,COUNTIF($A$2:A88,Pole_Kto),0)),\"\")","v":""},""]
[{"$f":"IFERROR(INDEX(Pole_Kto,MATCH(0,COUNTIF($A$2:A89,Pole_Kto),0)),\"\")","v":""},""]
[{"$f":"IFERROR(INDEX(Pole_Kto,MATCH(0,COUNTIF($A$2:A90,Pole_Kto),0)),\"\")","v":""},""]
[{"$f":"IFERROR(INDEX(Pole_Kto,MATCH(0,COUNTIF($A$2:A91,Pole_Kto),0)),\"\")","v":""},""]
[{"$f":"IFERROR(INDEX(Pole_Kto,MATCH(0,COUNTIF($A$2:A92,Pole_Kto),0)),\"\")","v":""},""]
[{"$f":"IFERROR(INDEX(Pole_Kto,MATCH(0,COUNTIF($A$2:A93,Pole_Kto),0)),\"\")","v":""},""]
[{"$f":"IFERROR(INDEX(Pole_Kto,MATCH(0,COUNTIF($A$2:A94,Pole_Kto),0)),\"\")","v":""},""]
[{"$f":"IFERROR(INDEX(Pole_Kto,MATCH(0,COUNTIF($A$2:A95,Pole_Kto),0)),\"\")","v":""},""]
[{"$f":"IFERROR(INDEX(Pole_Kto,MATCH(0,COUNTIF($A$2:A96,Pole_Kto),0)),\"\")","v":""},""]
[{"$f":"IFERROR(INDEX(Pole_Kto,MATCH(0,COUNTIF($A$2:A97,Pole_Kto),0)),\"\")","v":""},""]
[{"$f":"IFERROR(INDEX(Pole_Kto,MATCH(0,COUNTIF($A$2:A98,Pole_Kto),0)),\"\")","v":""},""]
[{"$f":"IFERROR(INDEX(Pole_Kto,MATCH(0,COUNTIF($A$2:A99,Pole_Kto),0)),\"\")","v":""},""]
[{"$f":"IFERROR(INDEX(Pole_Kto,MATCH(0,COUNTIF($A$2:A100,Pole_Kto),0)),\"\")","v":""},""]
[{"$f":"IFERROR(INDEX(Pole_Kto,MATCH(0,COUNTIF($A$2:A101,Pole_Kto),0)),\"\")","v":""},""]
[{"$f":"IFERROR(INDEX(Pole_Kto,MATCH(0,COUNTIF($A$2:A102,Pole_Kto),0)),\"\")","v":""},""]
[{"$f":"IFERROR(INDEX(Pole_Kto,MATCH(0,COUNTIF($A$2:A103,Pole_Kto),0)),\"\")","v":""},""]
[{"$f":"IFERROR(INDEX(Pole_Kto,MATCH(0,COUNTIF($A$2:A104,Pole_Kto),0)),\"\")","v":""},""]
[{"$f":"IFERROR(INDEX(Pole_Kto,MATCH(0,COUNTIF($A$2:A105,Pole_Kto),0)),\"\")","v":""},""]
[{"$f":"IFERROR(INDEX(Pole_Kto,MATCH(0,COUNTIF($A$2:A106,Pole_Kto),0)),\"\")","v":""},""]
[{"$f":"IFERROR(INDEX(Pole_Kto,MATCH(0,COUNTIF($A$2:A107,Pole_Kto),0)),\"\")","v":""},""]
[{"$f":"IFERROR(INDEX(Pole_Kto,MATCH(0,COUNTIF($A$2:A108,Pole_Kto),0)),\"\")","v":""},""]
[{"$f":"IFERROR(INDEX(Pole_Kto,MATCH(0,COUNTIF($A$2:A109,Pole_Kto),0)),\"\")","v":""},""]
[{"$f":"IFERROR(INDEX(Pole_Kto,MATCH(0,COUNTIF($A$2:A110,Pole_Kto),0)),\"\")","v":""},""]
[{"$f":"IFERROR(INDEX(Pole_Kto,MATCH(0,COUNTIF($A$2:A111,Pole_Kto),0)),\"\")","v":""},""]
[{"$f":"IFERROR(INDEX(Pole_Kto,MATCH(0,COUNTIF($A$2:A112,Pole_Kto),0)),\"\")","v":""},""]
[{"$f":"IFERROR(INDEX(Pole_Kto,MATCH(0,COUNTIF($A$2:A113,Pole_Kto),0)),\"\")","v":""},""]
[{"$f":"IFERROR(INDEX(Pole_Kto,MATCH(0,COUNTIF($A$2:A114,Pole_Kto),0)),\"\")","v":""},""]
[{"$f":"IFERROR(INDEX(Pole_Kto,MATCH(0,COUNTIF($A$2:A115,Pole_Kto),0)),\"\")","v":""},""]
[{"$f":"IFERROR(INDEX(Pole_Kto,MATCH(0,COUNTIF($A$2:A116,Pole_Kto),0)),\"\")","v":""},""]
[{"$f":"IFERROR(INDEX(Pole_Kto,MATCH(0,COUNTIF($A$2:A117,Pole_Kto),0)),\"\")","v":""},""]
[{"$f":"IFERROR(INDEX(Pole_Kto,MATCH(0,COUNTIF($A$2:A118,Pole_Kto),0)),\"\")","v":""},""]
[{"$f":"IFERROR(INDEX(Pole_Kto,MATCH(0,COUNTIF($A$2:A119,Pole_Kto),0)),\"\")","v":""},""]
[{"$f":"IFERROR(INDEX(Pole_Kto,MATCH(0,COUNTIF($A$2:A120,Pole_Kto),0)),\"\")","v":""},""]
[{"$f":"IFERROR(INDEX(Pole_Kto,MATCH(0,COUNTIF($A$2:A121,Pole_Kto),0)),\"\")","v":""},""]
[{"$f":"IFERROR(INDEX(Pole_Kto,MATCH(0,COUNTIF($A$2:A122,Pole_Kto),0)),\"\")","v":""},""]
[{"$f":"IFERROR(INDEX(Pole_Kto,MATCH(0,COUNTIF($A$2:A123,Pole_Kto),0)),\"\")","v":""},""]
[{"$f":"IFERROR(INDEX(Pole_Kto,MATCH(0,COUNTIF($A$2:A124,Pole_Kto),0)),\"\")","v":""},""]
[{"$f":"IFERROR(INDEX(Pole_Kto,MATCH(0,COUNTIF($A$2:A125,Pole_Kto),0)),\"\")","v":""},""]
[{"$f":"IFERROR(INDEX(Pole_Kto,MATCH(0,COUNTIF($A$2:A126,Pole_Kto),0)),\"\")","v":""},""]
[{"$f":"IFERROR(INDEX(Pole_Kto,MATCH(0,COUNTIF($A$2:A127,Pole_Kto),0)),\"\")","v":""},""]
[{"$f":"IFERROR(INDEX(Pole_Kto,MATCH(0,COUNTIF($A$2:A128,Pole_Kto),0)),\"\")","v":""},""]
[{"$f":"IFERROR(INDEX(Pole_Kto,MATCH(0,COUNTIF($A$2:A129,Pole_Kto),0)),\"\")","v":""},""]
[{"$f":"IFERROR(INDEX(Pole_Kto,MATCH(0,COUNTIF($A$2:A130,Pole_Kto),0)),\"\")","v":""},""]
[{"$f":"IFERROR(INDEX(Pole_Kto,MATCH(0,COUNTIF($A$2:A131,Pole_Kto),0)),\"\")","v":""},{"$f":"IF(A132=\"\",\"\",ROW())","v":""}]